Cogmind - Beta 13 @@@ ROGUE MODE // 2024.03.19 @ 15:30:40 Player: ILikeVoltron Result: Destroyed by P9-QI4(R) with Subdweller Beam Cannon Performance ------------- Evolutions (0) 0 Regions Visited (2) 400 Robots Destroyed (25) 125 Value Destroyed (539) 539 Prototype IDs (2) 40 Alien Tech Used (0) 0 Bonus (0) 0 TOTAL SCORE: 1104 Bonus ------- None Cogmind --------- Core Integrity 0/250 Matter 291/300 Energy 315/315 System Corruption 2% Temperature Cool (9) Movement Walking (190) Ox1 Location -10/Subcaves Parts ------- > --- POWER (1) -------- Neutrino Core > --- PROPULSION (2) --- Carbon-fiber Leg Myomer Leg > --- UTILITY (2) ------ Scrap Shield > --- WEAPON (2) ------- Subdweller Machine Gun Bore Cannon > --- INVENTORY (5) ---- Light Ion Engine Aluminum Leg High-capacity Matter Pod (200) Subdweller Machine Gun Light Cannon Peak State ------------ > --- POWER ------------ Neutrino Core > --- PROPULSION ------- Carbon-fiber Leg Myomer Leg > --- UTILITY ---------- Scrap Shield > --- WEAPON ----------- Subdweller Machine Gun Bore Cannon > --- INVENTORY -------- Light Ion Engine Aluminum Leg High-capacity Matter Pod Subdweller Machine Gun Light Cannon [Rating: 27] Favorites ----------- Power Ion Engine Engine Ion Engine Power Core Neutrino Core Propulsion Aluminum Leg Leg Aluminum Leg Utility Small Storage Unit Device Tractor Beam Storage Small Storage Unit Processor Targeting Computer Protection Scrap Shield Weapon Medium Laser Energy Gun Medium Laser Ballistic Gun Subdweller Machine Gun Ballistic Cannon Bore Cannon Launcher Grenade Launcher Build | -11 -10 -10 ------- Run | Yrd Mat Sub Slots Evolved . | . . . Power . | . . . Propulsion . | . . . Utility . | . . . Weapon . | . . . Parts Attached 28 | . 18 10 Power 3 | . 2 1 Engine 1 | . 1 . Core 2 | . 1 1 Reactor . | . . . Propulsion 10 | . 7 3 Treads . | . . . Leg 10 | . 7 3 Wheel . | . . . Hover . | . . . Flight . | . . . Utility 6 | . 4 2 Device 2 | . 1 1 Storage 1 | . 1 . Processor 1 | . 1 . Hackware . | . . . Protection 2 | . 1 1 Artifact . | . . . Weapon 9 | . 5 4 Energy Gun 4 | . 4 . Energy Cannon . | . . . Ballistic Gun 3 | . . 3 Ballistic Cannon 1 | . . 1 Launcher 1 | . 1 . Special Weapon . | . . . Impact Weapon . | . . . Slashing Weapon . | . . . Piercing Weapon . | . . . Special Melee Weapon . | . . . Unidentified Prototypes . | . . . Parts Lost 4 | . 1 3 Power 1 | . 1 . Propulsion 1 | . . 1 Utility . | . . . Weapon 2 | . . 2 Highest Loss Streak 3 | . 1 3 To Critical Strikes . | . . . Average Slot Usage (%) 91 | . 95 86 Engine 5 | . 8 . Core 8 | . 5 14 Leg 26 | . 27 25 Device 5 | . 6 3 Storage 10 | . 15 3 Processor 1 | . 1 . Protection 5 | . 2 10 Energy Gun 15 | . 24 2 Ballistic Gun 5 | . . 13 Ballistic Cannon 4 | . . 11 Naked Turns . | . . . Heaviest Build 45 | 14 16 45 Greatest Support 40 | 20 20 40 Greatest Overweight (x) 4 | . 4 1 Average Overweight (x) . | . . . Largest Inventory Capacity 8 | 8 8 8 Average Capacity 7 | 8 8 5 Most Carried 8 | 6 8 8 Average Carried 6 | 6 7 5 Final Capacity 8 | 8 8 5 Final Carried 8 | 6 8 5 Class Distribution -------------------- 59% | Mutant 40% | Scavenger-Mutant Dominant Class ---------------- Mutant | -10/Materials Scavenger-Mutant | -10/Subcaves Resources | -11 -10 -10 ----------- Run | Yrd Mat Sub Matter Collected 1120 | 200 507 413 Remotely 137 | . 137 . Salvage Created 938 | . 696 242 Parts 42 | . 30 12 Haulers Intercepted 2 | . 2 . Recyclers Shooed 1 | . 1 . Parts Field Recycled . | . . . Retrieved Matter . | . . . Parts Self-Destructed 5 | . . 5 Prevented . | . . . Kills | -11 -10 -10 ------- Run | Yrd Mat Sub Combat Hostiles Destroyed 15 | . 9 6 Guns 13 | . 8 5 Cannons 1 | . . 1 AOE 1 | . 1 . Classes Destroyed 7 | . 6 1 Worker 4 | . 4 . Hauler 2 | . 2 . Recycler 2 | . 2 . Watcher 2 | . 2 . Swarmer 3 | . 3 . Grunt 6 | . 6 . Subdweller 6 | . . 6 Best Kill Streak 9 | . 9 5 Combat Bots Only 5 | . 3 5 Max Kills in Single Turn 2 | . 2 2 Gunslinging 1 | . 1 . Exploded 1 | . 1 . Melee . | . . . Uniques/NPCs Destroyed . | . . . Combat | -11 -10 -10 -------- Run | Yrd Mat Sub Hostile Shots Fired 115 | . 70 45 Missed 44 | . 30 14 Damage Taken 1046 | . 419 627 Core 255 | . 46 209 Absorbed by Shields . | . . . Core Remaining (%) 100 | 100 . . Volleys Fired 70 | 7 48 15 Largest 2 | 2 2 2 Hottest 100 | 90 100 87 Shots Fired 134 | 14 90 30 Gun 121 | 14 89 18 Cannon 12 | . . 12 Launcher 1 | . 1 . Special . | . . . Kinetic 28 | . . 28 Thermal 97 | 7 88 2 Explosive 1 | . 1 . Electromagnetic 8 | 7 1 . Robot Hit Streak 13 | 2 11 13 Robot Miss Streak 6 | 3 6 5 Penetration Max 1 | . . 1 Secondary Targets 3 | . 3 . Max Gunslinging Chain 1 | . 1 . Shots Hit Robots 79 | 7 55 17 Core Hits 36 | . 30 6 Critical Kills 3 | . . 3 Critical Parts Destroyed . | . . . Critical Strikes 10 | . 4 6 Burn 5 | . 4 1 Destroy 5 | . . 5 Melee Attacks . | . . . Impact . | . . . Slashing . | . . . Piercing . | . . . Sneak Attacks . | . . . Combat Hostiles . | . . . Follow-up Attacks . | . . . Damage Inflicted 1264 | 88 825 351 Guns 1088 | 88 746 254 Cannons 97 | . . 97 Explosions 79 | . 79 . Melee . | . . . Ramming . | . . . Kinetic 325 | . . 325 Thermal 802 | 52 724 26 Explosive 79 | . 79 . Electromagnetic 58 | 36 22 . Impact . | . . . Slashing . | . . . Piercing . | . . . Highest Corruption 2 | . 2 2 Average Corruption 2 | . 2 2 Corruption Purged . | . . . Corruption Blocked . | . . . Effects 15 | . 8 7 Message Errors 5 | . 3 2 Matter Fused 4 | . 2 2 Heat Flow Errors 1 | . . 1 Energy Discharges 2 | . 2 . Data Loss (minor) 1 | . 1 . Data Loss (major) 2 | . . 2 Overload Shots . | . . . Overflow Damage . | . . . Projectiles . | . . . Explosions . | . . . Melee . | . . . Knockbacks . | . . . Impact . | . . . Kinetic . | . . . Secondary . | . . . Self-Inflicted Damage . | . . . Shots . | . . . Rammed . | . . . Targets Rammed . | . . . Kicked . | . . . Crushed . | . . . Highest Temperature 290 | 210 290 154 Average Temperature 107 | 118 112 32 Received Heat Transfer 279 | . 156 123 Effects 1 | . 1 . Energy Bleed 1 | . 1 . Siege Activations . | . . . Robots Corrupted . | . . . Combat Hostiles . | . . . Parts Fried . | . . . Impact Corruptions . | . . . Robots Melted 1 | . 1 . Combat Hostiles . | . . . Parts Melted 6 | . 6 . Heat Transferred 2738 | 148 2442 148 Parts Sabotaged . | . . . Parts Stolen . | . . . Parts Stripped . | . . . Power Chain Reactions . | . . . Alert | -11 -10 -10 ------- Run | Yrd Mat Sub Peak Influence 256 | . 256 . Initial . | . . . Average 147 | . 152 . Maximum Alert Level 1 | . 1 . Low Security (%) 72 | 100 71 . Level 1 27 | . 28 . Level 2 . | . . . Level 3 . | . . . Level 4 . | . . . Level 5 . | . . . High Security . | . . . Max Security . | . . . Squads Dispatched 1 | . 1 . Investigation . | . . . Extermination . | . . . Reinforcement 1 | . 1 . Assault . | . . . Garrison . | . . . Intercept . | . . . Searches Triggered . | . . . Construction Impeded . | . . . Haulers Reinforced . | . . . Active Scanning Responses . | . . . Cargo Convoy Interrupts . | . . . Stealth | -11 -10 -10 --------- Run | Yrd Mat Sub Distress Signals 1 | . 1 . Communications Jammed . | . . . Distress Signals . | . . . Times Spotted 32 | . 18 14 Peak Tracking Total 10 | . 4 10 Tactical Retreats . | . . . Traps | -11 -10 -10 ------- Run | Yrd Mat Sub Traps Triggered 5 | . 5 . Indirectly . | . . . Trap Hack Attempts . | . . . Triggered . | . . . Disarmed . | . . . Reprogrammed . | . . . Reused . | . . . Traps Extracted . | . . . Installed . | . . . Triggered . | . . . Machines | -11 -10 -10 ---------- Run | Yrd Mat Sub Machines Disabled . | . . . Max in Single Turn . | . . . Machines Repaired . | . . . Machines Dismantled . | . . . Machines Sabotaged . | . . . Overloaded Fab Kills . | . . . Hacking | -11 -10 -10 --------- Run | Yrd Mat Sub Machines Accessed 7 | . 7 . Terminals 7 | . 7 . Fabricators . | . . . Repair Stations . | . . . Recycling Units . | . . . Scanalyzers . | . . . Garrison Access . | . . . Total Hacks 16 | . 16 . Successful 9 | . 9 . Failed 7 | . 7 . Catastrophic 1 | . 1 . Database Lockouts . | . . . Manual 8 | . 8 . Terminals 16 | . 16 . Fabricators . | . . . Repair Stations . | . . . Recycling Units . | . . . Scanalyzers . | . . . Garrison Access . | . . . Terminal Hacks 3 | . 3 . Prototype ID Bank 1 | . 1 . Terminal Index 1 | . 1 . Hauler Manifests 1 | . 1 . Fabricator Hacks . | . . . Repair Station Hacks . | . . . Recycling Unit Hacks . | . . . Scanalyzer . | . . . Garrison Access Hacks . | . . . Unauthorized Hacks 6 | . 6 . Terminals 6 | . 6 . Track 3 | . 3 . Botnet 3 | . 3 . Fabricators . | . . . Repair Stations . | . . . Recycling Units . | . . . Scanalyzers . | . . . Garrison Access . | . . . Data Cores Recovered . | . . . Used . | . . . Hacking Detections 4 | . 4 . Full Trace Events 1 | . 1 . Feedback Events . | . . . Feedback Blocked . | . . . Robot Schematics Acquired . | . . . Robots Built . | . . . Authchips . | . . . Time . | . . . Total Robot Build Rating . | . . . Part Schematics Acquired . | . . . Parts Built . | . . . Authchips . | . . . Time . | . . . Total Part Build Rating . | . . . Parts Repaired . | . . . Time . | . . . Parts Recycled . | . . . Recycled Matter . | . . . Retrieved Matter . | . . . Retrieved Components . | . . . Parts Scanalyzed . | . . . Part Schematics Acquired . | . . . Parts Damaged . | . . . Bothacking | -11 -10 -10 ------------ Run | Yrd Mat Sub Used RIF Installer . | . . . Robots Hacked . | . . . Non-combat . | . . . Combat . | . . . Robot Hacks Applied . | . . . Relay Couplers Released . | . . . Fabnet Peak Effective % . | . . . Robots Rewired . | . . . Allies Hacked . | . . . Hacks Repelled . | . . . Allies | -11 -10 -10 -------- Run | Yrd Mat Sub Total Allies . | . . . Largest Group . | . . . Highest-Rated Group . | . . . Highest-Rated Ally . | . . . Total Orders . | . . . Ally Attacks . | . . . Total Damage . | . . . Kills . | . . . Allies Corrupted . | . . . Allies Melted . | . . . Intel | -11 -10 -10 ------- Run | Yrd Mat Sub Robot Analysis Total . | . . . Derelict Logs Recovered 1 | . . 1 Drone Launches . | . . . Drone Recoveries . | . . . Exploration | -11 -10 -10 ------------- Run | Yrd Mat Sub Turns Passed 1370 | 26 801 543 Spaces Moved 785 | 5 515 265 Core 2 | . 2 . Treads . | . . . Legs 783 | 5 513 265 Wheels . | . . . Hover . | . . . Flight . | . . . Fastest Speed 120 | 120 120 120 Average Speed 138 | 120 121 171 Slowest Speed 250 | 120 250 190 Overloaded Moves . | . . . Propulsion Burnouts . | . . . Robots Hopped . | . . . Cave-ins Triggered . | . . . Exploration Rate (%) 33 | 3 81 15 Regions Visited 2 Branch Regions 1 Pre-discovered Areas . | . . . Known Exits Taken . | . . . Unknown Exits Taken 2 | 1 1 . Scrap Searched . | . . . Spaces Dug . | . . . Terrain Destroyed 18 | . 12 6 Melee . | . . . Projectile 6 | . . 6 AOE 12 | . 12 . Terrain Rammed . | . . . Walls Destroyed . | . . . Machines Disabled . | . . . Actions | -11 -10 -10 --------- Run | Yrd Mat Sub Total 947 | 11 608 328 Wait 28 | . . 28 Move 783 | 4 514 265 Hop . | . . . Pick Up 14 | . 12 2 Fast Attach 17 | . 13 4 Attach 3 | . . 3 Detach 1 | . . 1 Swap 8 | . 5 3 Drop 21 | . 16 5 Fire 70 | 7 48 15 Melee . | . . . Ram . | . . . Kick . | . . . Crush . | . . . Escape Stasis . | . . . Rewire . | . . . Trap . | . . . Miscellaneous 2 | . . 2 Route ------- -11/Scrapyard -10/Materials (discovered 3 exits: [*Mat] / [*Min] / [*Sub]) -10/Subcaves History --------- Turn | Location | Event 22 | -11/Scrapyard | Discovered new exit (range 2) 27 | -11/Scrapyard | Entered Materials 85 | -10/Materials | Discovered new exit (range 13) 306 | -10/Materials | Build established: Mutant 371 | -10/Materials | Discovered new exit (range 4) 807 | -10/Materials | Discovered new exit (range 11) 828 | -10/Materials | Entered Subcaves 918 | -10/Subcaves | Ambushed by swarm of Subdwellers 920 | -10/Subcaves | Ambushed by Subdwellers from Twisted Machinery 922 | -10/Subcaves | Ambushed by Subdwellers from Twisted Machinery 922 | -10/Subcaves | Ambushed by Subdwellers from Twisted Machinery 935 | -10/Subcaves | Ambushed by Subdweller buried in earth 953 | -10/Subcaves | Core integrity fell below 50% 966 | -10/Subcaves | Core integrity fell below 20% 977 | -10/Subcaves | Lost 4 allies 994 | -10/Subcaves | Lost 3 parts (1n2w) 1038 | -10/Subcaves | Learned location of 1 exit from Materials 1124 | -10/Subcaves | Build established: Scavenger-Mutant 1371 | -10/Subcaves | Destroyed by P9-QI4(R) with Subdweller Beam Cannon Last Messages --------------- 00992_ System corrupted: Substantial component data lost. 00994_ Acquired 29 matter. 00996_ Acquired 55 matter. 00998_ Acquired 50 matter. 01005_ Acquired 51 matter. 01009_ System corrupted: Matter fused (-7). 01009_ Acquired Sub. Machine Gun. 01010_ Acquired 64 matter. 01023_ Acquired Aluminum Leg. 01038_ Acquired derelict log, extracted data. Data stored: Materials exits (x1). 01046_ System corrupted: Matter fused (-10). 01059_ Acquired 30 matter. 01080_ Scrap Shield Fragment affixed to Scrap Shield (+42). 01084_ Scrap Shield Fragment affixed to Scrap Shield (+22). 01091_ U1C=#HDT/UYKXC|CGBTGRH/AT 01116_ System corrupted: Heat flow error (+188). 01185_ A5 IZMT>/:ZUYIK T,N9/F%O&LE 01319_ 66-KGE(u) tweaks Twisted Machinery. 01358_ P9-QI4(R): "LEAVESUB!" Map ----- +----------------------------------------------------+ | ?????????????????????????????????????????????????? | | ?????????????????????????????????????????????????? | | ?????????????????????????????????????????????????? | | ?????????????????????????????????????????????????? | | ?????????????????????????????????????????????????? | | ?????????????????????????????????????????????????? | | ?????????????????????????????????????????????????? | | ?????????????????????????????????????????????????? | | ?????????????????????????????????????????????????? | | ?????????????????????????????????????????????????? | | ?????????????????????????????????????????????????? | | ?????????????????????????????????????????????????? | | ???????????????????##????????????????????????????? | | ???????????????????# ????????????????????????????? | | ??????????????????## ???????????????????????????? | | ??????????????????# ???????????????????????????? | | ??????????????????# ??????????????????????????? | | ??????????????????# ??????????????????????????? | | ???????????? ? ???# ??????????????????????????? | | ???????????? ?## ?????????????????????????? | | ????????????# # ?????????????????????????? | | ????????????# #????????????????????????? | | ?????????????? R;??????###???????????????? | | ?????????????????# ##???# #???????????????? | | ??????????????????# #?## #???????????????? | | ????????????## # # @### #???????????????? | | ????????????# ##??????????????? | | ?????????? #??????????????? | | ??????????? # % ##??????????????? | | ??????????? ????# #??????? ??????? | | ????????????????# % # ##????? ?????? | | ????????????????####### # #???? ?????? | | ?????????????????????# # ## ### ????? | | ???????????????????? ## ????? | | ???????????????????# # # ????? | | ???????????????????# # ## # # ????? | | ?????????????????? ? ## #### ??? | | ????????????????? # ### #?# ### ?? | | ????????????????? ?##### ### ####?# ??? | | ???????????????? ?##????# ##### #??? | | ?????????????????????????# #??# | | ?????????????????????????# #??# | | ?????????????????????????# ### | | ?????????????????????????# ### ## | | ???????????????????# ## ##?# ## | | ??????????????????# "" ### " | | ????????????????? " "" " " # | | ???????????????????? " "" " #? | | ???????????????????? "" """ #?? | | ?????????????????????" """" "### #??? | +----------------------------------------------------+ Best States ------------- Heat Dissipation 25 Energy Generation 19 Energy Capacity 315 Matter Stores 350 Matter Capacity 350 Sight Range 16 Robot Scan Range 14 Terrain Scan Density 10 Armor Coverage 800 Core Shielding 20 Evasion (%) 55 Targeting Accuracy 5 Item Schematics ----------------- None Robot Schematics ------------------ None Fabricated ------------ Nothing Alien Tech Used ----------------- None Achievements -------------- None Challenges ------------ None Game ------ Seed ShrapnelLauncherInitializer Manual? 0 Play Time 00:19:55 Cumulative 107.2 hours Start 2024.03.19 @ 15:16:39 End 2024.03.19 @ 15:30:40 Sessions 1 Manual Loads 0 Difficulty Rogue Special Mode None Game No. 168 Rogue 164 Adventurer 0 Explorer 4 Win Type - Total 0 Types 0/0/0/0/0/0/0/0/0 Lore% 24 Gallery% 42 Achievement% 33 Wizard Run 0 Options --------- Layout 2 ASCII 0 Keyboard 1 Movement Arrows Keybinds 0 Fullscreen 2 Font 32/SmallcapsGlow Map View 130x44 Zoom Use 0% Tactical HUD 1 Map Filters NONE Filters NONE Steam 1 RUN: 1728c852-6cf2-4261-ba53-c2a02a809c22